fUST/lending_fUST_20240701
["ID","MTS","AMOUNT","RATE_DAILY","PERIOD"]
[330783448,1719781783796,-723.10605118,0.00015024,2]
[330783449,1719781808572,-300.0,0.00015023,2]
[330783450,1719781808602,-478.88038568,0.00015024,2]
[330783451,1719781808638,-485.73961432,0.00015024,2]
[330783452,1719781808668,-255.71889085,0.00015024,2]
[330783473,1719781832271,-310.0,0.00015023,2]
[330783475,1719781832283,-212.5,0.00015023,2]
[330783476,1719781832293,-500.0,0.00015023,2]
[330783477,1719781832302,-210.76625,0.00015024,2]
[330783478,1719781832314,-819.09999391,0.00015024,2]
[330783479,1719781832340,-574.04375609,0.00015024,2]
[330783481,1719781832349,-220.32194099,0.00015024,2]
[330783511,1719781838356,-340.57805901,0.00015024,2]
[330783512,1719781838371,-500.0,0.00015024,2]
[330783513,1719781838381,-500.0,0.00015024,2]
[330783514,1719781838391,-3965.97,0.00015024,2]
[330783515,1719781838402,-15713.01,0.00015024,2]
[330783516,1719781838415,-3812.99,0.00015024,2]
[330783517,1719781838424,-2013.33,0.00015024,2]
[330783519,1719781838435,-660.16,0.00015024,2]
[330783522,1719781838446,-500.0,0.00015024,2]
[330783525,1719781838456,-1654.93,0.00015024,2]
[330783527,1719781838466,-1793.76,0.00015024,2]
[330783530,1719781838475,-1714.12,0.00015024,2]
[330783532,1719781838485,-5771.72,0.00015024,2]
[330783533,1719781838494,-500.0,0.00015024,2]
[330783535,1719781838505,-1430.12,0.00015024,2]
[330783537,1719781838519,-6472.98,0.00015024,2]
[330783540,1719781838528,-238.36605521,0.00015024,2]
[330783543,1719781838538,-518.47,0.00015024,2]
[330783546,1719781838549,-14709.2,0.00015024,2]
[330783549,1719781838559,-696.38,0.00015024,2]
[330783551,1719781838568,-2117.34,0.00015024,2]
[330783553,1719781838578,-2312.74,0.00015024,2]
[330783555,1719781838588,-3800.07,0.00015024,2]
[330783557,1719781838598,-500.0,0.00015024,2]
[330783559,1719781838608,-749.89,0.00015024,2]
[330783561,1719781838618,-500.0,0.00015024,2]
[330783563,1719781838628,-921.07,0.00015024,2]
[330783565,1719781838639,-501.68919144,0.00015025,2]
[330783567,1719781838649,-159.2769432,0.00015025,2]
[330783569,1719781838659,-601.87869073,0.00015025,2]
[330783571,1719781838669,-500.0,0.00015025,2]
[330783573,1719781838678,-1550.2,0.00015025,2]
[330783576,1719781838688,-500.0,0.00015025,2]
[330783577,1719781838699,-500.0,0.00015025,2]
[330783579,1719781838709,-250.30493242,0.00015025,2]
[330783581,1719781838718,-289.91314799,0.00015025,2]
[330783583,1719781838728,-501.68662757,0.00015025,2]
[330783585,1719781838739,-500.0,0.00015025,2]
[330783587,1719781838749,-500.0,0.00015025,2]
[330783589,1719781838759,-500.0,0.00015025,2]
[330783591,1719781838770,-171.80045941,0.00015025,2]
[330783593,1719781838780,-500.0,0.00015025,2]
[330783595,1719781838790,-500.0,0.00015025,2]
[330783597,1719781838800,-500.0,0.00015025,2]
[330783599,1719781838810,-500.0,0.00015025,2]
[330783601,1719781838820,-500.0,0.00015025,2]
[330783603,1719781838830,-500.0,0.00015025,2]
[330783605,1719781838841,-1956.01,0.00015025,2]
[330783607,1719781838851,-500.0,0.00015025,2]
[330783609,1719781838861,-500.0,0.00015025,2]
[330783611,1719781838872,-500.0,0.00015025,2]
[330783614,1719781838882,-500.0,0.00015025,2]
[330783615,1719781838892,-500.0,0.00015025,2]
[330783618,1719781838903,-500.0,0.00015025,2]
[330783620,1719781838913,-500.0,0.00015025,2]
[330783622,1719781838923,-500.0,0.00015025,2]
[330783624,1719781838933,-1851.29,0.00015025,2]
[330783626,1719781838943,-500.0,0.00015025,2]
[330783628,1719781838953,-2213.69,0.00015025,2]
[330783630,1719781838963,-699.4,0.00015025,2]
[330783632,1719781838973,-584.6,0.00015025,2]
[330783634,1719781838982,-500.0,0.00015025,2]
[330783635,1719781838992,-506.8484284,0.00015025,2]
[330783636,1719781839003,-805.6,0.00015025,2]
[330783637,1719781839013,-500.0,0.00015025,2]
[330783639,1719781839023,-1443.99,0.00015025,2]
[330783641,1719781839033,-500.0,0.00015025,2]
[330783643,1719781839043,-506.28796001,0.00015025,2]
[330783645,1719781839054,-554.73,0.00015025,2]
[330783647,1719781839064,-500.0,0.00015025,2]
[330783648,1719781839075,-500.0,0.00015025,2]
[330783649,1719781839085,-500.0,0.00015025,2]
[330783651,1719781839096,-1234.61,0.00015025,2]
[330783653,1719781839106,-500.0,0.00015025,2]
[330783654,1719781839117,-500.0,0.00015025,2]
[330783655,1719781839128,-804.77,0.00015025,2]
[330783656,1719781839137,-500.0,0.00015025,2]
[330783657,1719781839148,-500.0,0.00015025,2]
[330783658,1719781839159,-500.0,0.00015025,2]
[330783659,1719781839170,-602.04,0.00015025,2]
[330783660,1719781839181,-500.0,0.00015025,2]
[330783661,1719781839192,-500.0,0.00015025,2]
[330783662,1719781839203,-620.87,0.00015025,2]
[330783663,1719781839213,-502.84176191,0.00015025,2]
[330783664,1719781839223,-500.0,0.00015025,2]
[330783665,1719781839234,-500.0,0.00015025,2]
[330783666,1719781839245,-500.0,0.00015025,2]
[330783667,1719781839255,-810.67,0.00015025,2]
[330783668,1719781839265,-500.0,0.00015025,2]
[330783669,1719781839275,-681.84,0.00015025,2]
[330783670,1719781839285,-506.6881832,0.00015025,2]
[330783671,1719781839295,-500.0,0.00015025,2]
[330783672,1719781839305,-500.0,0.00015025,2]
[330783673,1719781839316,-500.0,0.00015025,2]
[330783674,1719781839326,-500.0,0.00015025,2]
[330783675,1719781839337,-576.74,0.00015025,2]
[330783676,1719781839349,-355.64582305,0.00015025,2]
[330783677,1719781839360,-521.16828657,0.00015025,2]
[330783678,1719781839375,-500.0,0.00015025,2]
[330783679,1719781839385,-500.0,0.00015025,2]
[330783680,1719781839395,-500.0,0.00015025,2]
[330783681,1719781839405,-500.0,0.00015025,2]
[330783682,1719781839415,-237.82103358,0.00015025,2]
[330783683,1719781839425,-500.0,0.00015025,2]
[330783684,1719781839435,-500.0,0.00015025,2]
[330783685,1719781839445,-285.5,0.00015025,2]
[330783686,1719781839457,-500.0,0.00015025,2]
[330783687,1719781839469,-500.0,0.00015025,2]
[330783688,1719781839480,-500.0,0.00015025,2]
[330783689,1719781839490,-505.91,0.00015025,2]
[330783690,1719781839501,-500.0,0.00015025,2]
[330783691,1719781839511,-500.0,0.00015025,2]
[330783692,1719781839523,-500.0,0.00015025,2]
[330783693,1719781839533,-2091.26,0.00015025,2]
[330783694,1719781839543,-736.61,0.00015025,2]
[330783695,1719781839554,-500.0,0.00015025,2]
[330783696,1719781839565,-10482.97,0.00015025,2]
[330783697,1719781839575,-1343.33,0.00015025,2]
[330783698,1719781839586,-500.0,0.00015025,2]
[330783699,1719781839596,-504.59801319,0.00015025,2]
[330783700,1719781839607,-500.0,0.00015025,2]
[330783701,1719781839618,-3323.36,0.00015025,2]
[330783702,1719781839628,-1463.65,0.00015025,2]
[330783703,1719781839638,-500.0,0.00015025,2]
[330783704,1719781839648,-500.0,0.00015025,2]
[330783705,1719781839659,-500.0,0.00015025,2]
[330783706,1719781839668,-500.0,0.00015025,2]
[330783707,1719781839678,-648.75,0.00015025,2]
[330783708,1719781839688,-500.0,0.00015025,2]
[330783709,1719781839698,-780.51,0.00015025,2]
[330783710,1719781839707,-500.0,0.00015025,2]
[330783711,1719781839718,-501.9053898,0.00015025,2]
[330783712,1719781839728,-500.0,0.00015025,2]
[330783713,1719781839737,-500.0,0.00015025,2]
[330783714,1719781839748,-723.16,0.00015025,2]
[330783715,1719781839758,-500.0,0.00015025,2]
[330783716,1719781839768,-500.0,0.00015025,2]
[330783717,1719781839778,-500.0,0.00015025,2]
[330783718,1719781839787,-500.0,0.00015025,2]
[330783719,1719781839797,-500.0,0.00015025,2]
[330783720,1719781839807,-629.34,0.00015025,2]
[330783721,1719781839817,-500.0,0.00015025,2]
[330783722,1719781839827,-1346.38,0.00015025,2]
[330783723,1719781839838,-502.60302224,0.00015025,2]
[330783724,1719781839848,-937.62,0.00015025,2]
[330783725,1719781839858,-500.0,0.00015025,2]
[330783726,1719781839869,-500.0,0.00015025,2]
[330783727,1719781839879,-1606.66,0.00015025,2]
[330783728,1719781839890,-1086.49,0.00015025,2]
[330783729,1719781839900,-864.7,0.00015025,2]
[330783730,1719781839911,-504.15,0.00015025,2]
[330783731,1719781839920,-500.0,0.00015025,2]
[330783732,1719781839930,-500.0,0.00015025,2]
[330783733,1719781839940,-500.0,0.00015025,2]
[330783734,1719781839950,-500.0,0.00015025,2]
[330783735,1719781839960,-500.0,0.00015025,2]
[330783736,1719781839970,-504.25480397,0.00015025,2]
[330783737,1719781839979,-639.76298879,0.00015025,2]
[330783738,1719781839989,-500.0,0.00015025,2]
[330783739,1719781839998,-507.17,0.00015025,2]
[330783740,1719781840008,-500.0,0.00015025,2]
[330783741,1719781840018,-505.7045476,0.00015025,2]
[330783742,1719781840028,-500.0,0.00015025,2]
[330783743,1719781840037,-500.0,0.00015025,2]
[330783745,1719781840046,-1681.2,0.00015025,2]
[330783747,1719781840056,-500.0,0.00015025,2]
[330783749,1719781840067,-500.0,0.00015025,2]
[330783751,1719781840077,-453.7514208,0.00015025,2]
[330783752,1719781840087,-500.0,0.00015025,2]
[330783753,1719781840097,-538.94226023,0.00015025,2]
[330783754,1719781840106,-500.0,0.00015025,2]
[330783755,1719781840117,-500.0,0.00015025,2]
[330783757,1719781840127,-500.0,0.00015025,2]
[330783759,1719781840136,-500.0,0.00015025,2]
[330783761,1719781840146,-500.0,0.00015025,2]
[330783763,1719781840156,-500.0,0.00015025,2]
[330783764,1719781840166,-500.0,0.00015025,2]
[330783768,1719781840269,-502.59936462,0.00015025,2]
[330783769,1719781840279,-502.5492614,0.00015025,2]
[330783770,1719781840289,-500.0,0.00015025,2]
[330783771,1719781840299,-500.0,0.00015025,2]
[330783772,1719781840308,-500.0,0.00015025,2]
[330783773,1719781840318,-500.0,0.00015025,2]
[330783774,1719781840327,-500.0,0.00015025,2]
[330783775,1719781840337,-500.0,0.00015025,2]
[330783777,1719781840348,-500.0,0.00015025,2]
[330783778,1719781840357,-503.66960898,0.00015025,2]
[330783780,1719781840367,-500.0,0.00015025,2]
[330783782,1719781840380,-520.82,0.00015025,2]
[330783783,1719781840390,-500.0,0.00015025,2]
[330783785,1719781840400,-826.6,0.00015025,2]
[330783787,1719781840411,-500.0,0.00015025,2]
[330783789,1719781840420,-500.0,0.00015025,2]
[330783791,1719781840429,-502.81978746,0.00015025,2]
[330783793,1719781840438,-500.0,0.00015025,2]
[330783795,1719781840448,-76499.60806358,0.00015026,2]
[330783797,1719781840460,-763.6,0.00015026,2]
[330783799,1719781840470,-500.0,0.00015026,2]
[330783801,1719781840479,-500.0,0.00015026,2]
[330783803,1719781840488,-500.0,0.00015026,2]
[330783805,1719781840498,-500.0,0.00015026,2]
[330783807,1719781840508,-500.0,0.00015026,2]
[330783809,1719781840518,-500.0,0.00015026,2]
[330783811,1719781840527,-576.58,0.00015026,2]
[330783813,1719781840537,-504.73942185,0.00015026,2]
[330783815,1719781840547,-500.0,0.00015026,2]
[330783817,1719781840556,-1674.52,0.00015026,2]
[330783819,1719781840566,-500.0,0.00015026,2]
[330783821,1719781840575,-500.0,0.00015026,2]
[330783823,1719781840586,-500.0,0.00015026,2]
[330783825,1719781840595,-500.0,0.00015026,2]
[330783827,1719781840605,-500.0,0.00015026,2]
[330783829,1719781840615,-500.0,0.00015026,2]
[330783831,1719781840624,-611.04,0.00015026,2]
[330783833,1719781840634,-500.0,0.00015026,2]
[330783835,1719781840644,-1191.57,0.00015026,2]
[330783837,1719781840654,-549.79723835,0.00015026,2]
[330783839,1719781840664,-521.55,0.00015026,2]
[330783841,1719781840674,-500.0,0.00015026,2]
[330783843,1719781840684,-508.12,0.00015026,2]
[330783845,1719781840694,-1421.95,0.00015026,2]
[330783847,1719781840703,-500.0,0.00015026,2]
[330783849,1719781840713,-9614.5,0.00015026,2]
[330783851,1719781840722,-500.0,0.00015026,2]
[330783853,1719781840731,-500.0,0.00015026,2]
[330783855,1719781840741,-500.0,0.00015026,2]
[330783857,1719781840751,-790.06,0.00015026,2]
[330783860,1719781840761,-743.43,0.00015026,2]
[330783862,1719781840771,-500.0,0.00015026,2]
[330783863,1719781840780,-1928.74,0.00015026,2]
[330783866,1719781840790,-956.51,0.00015026,2]
[330783867,1719781840799,-500.0,0.00015026,2]
[330783870,1719781840809,-500.0,0.00015026,2]
[330783872,1719781840819,-500.0,0.00015026,2]
[330783873,1719781840828,-500.0,0.00015026,2]
[330783876,1719781840838,-742.28,0.00015026,2]
[330783878,1719781840847,-500.0,0.00015026,2]
[330783880,1719781840858,-1205.58,0.00015026,2]
[330783882,1719781840868,-500.0,0.00015026,2]
[330783884,1719781840877,-1127.92,0.00015026,2]
[330783886,1719781840885,-500.0,0.00015026,2]
[330783888,1719781840894,-501.8330513,0.00015026,2]
[330783890,1719781840904,-500.0,0.00015026,2]
[330783892,1719781840913,-500.0,0.00015026,2]
[330783893,1719781840923,-500.0,0.00015026,2]
[330783896,1719781840932,-500.0,0.00015026,2]
[330783897,1719781840941,-500.0,0.00015026,2]
[330783900,1719781840951,-502.16022671,0.00015026,2]
[330783902,1719781840961,-500.0,0.00015026,2]
[330783904,1719781840970,-500.0,0.00015026,2]
[330783906,1719781840979,-500.0,0.00015026,2]
[330783908,1719781840988,-804.49,0.00015026,2]
[330783910,1719781840998,-500.0,0.00015026,2]
[330783912,1719781841007,-500.0,0.00015026,2]
[330783914,1719781841017,-1299.58,0.00015026,2]
[330783916,1719781841026,-500.0,0.00015026,2]
[330783918,1719781841035,-504.90985655,0.00015026,2]
[330783920,1719781841044,-500.0,0.00015027,2]
[330783922,1719781841058,-426.86121679,0.00015027,2]
[330783925,1719781841076,-500.0,0.00015027,2]
[330783928,1719781841088,-869.84,0.00015027,2]
[330783930,1719781841104,-500.0,0.00015027,2]
[330783933,1719781841119,-500.0,0.00015027,2]
[330783936,1719781841134,-500.0,0.00015027,2]
[330783938,1719781841150,-500.0,0.00015027,2]
[330783941,1719781841166,-717.36,0.00015027,2]
[330783944,1719781841180,-500.0,0.00015027,2]
[330783946,1719781841194,-500.0,0.00015027,2]
[330783949,1719781841208,-500.0,0.00015027,2]
[330783951,1719781841223,-500.0,0.00015027,2]
[330783954,1719781841235,-500.0,0.00015027,2]
[330783956,1719781841247,-500.0,0.00015027,2]
[330783958,1719781841260,-500.0,0.00015027,2]
[330783961,1719781841276,-500.0,0.00015027,2]
[330783964,1719781841294,-500.0,0.00015027,2]
[330783966,1719781841309,-500.0,0.00015027,2]
[330783969,1719781841320,-918.64,0.00015027,2]
[330783971,1719781841331,-500.0,0.00015027,2]
[330783973,1719781841343,-500.0,0.00015027,2]
[330783976,1719781841356,-203.71172782,0.00015027,2]
[330783978,1719781841376,-500.0,0.00015027,2]
[330783980,1719781841388,-500.0,0.00015027,2]
[330783983,1719781841401,-500.0,0.00015027,2]
[330783985,1719781841417,-292.90283825,0.00015027,2]
[330783987,1719781841428,-500.0,0.00015027,2]
[330783990,1719781841440,-500.0,0.00015027,2]
[330783992,1719781841452,-610.94209197,0.00015027,2]
[330783994,1719781841465,-500.0,0.00015027,2]
[330783997,1719781841477,-500.0,0.00015027,2]
[330783999,1719781841491,-500.0,0.00015027,2]
[330784001,1719781841504,-500.0,0.00015027,2]
[330784004,1719781841519,-500.0,0.00015027,2]
[330784006,1719781841530,-427.29339011,0.00015027,2]
[330784008,1719781841541,-500.0,0.00015027,2]
[330784010,1719781841553,-500.0,0.00015027,2]
[330784013,1719781841565,-500.0,0.00015027,2]
[330784015,1719781841577,-500.0,0.00015027,2]
[330784017,1719781841590,-500.0,0.00015027,2]
[330784020,1719781841603,-500.0,0.00015027,2]
[330784022,1719781841615,-500.0,0.00015027,2]
[330784024,1719781841627,-500.62278699,0.00015027,2]
[330784027,1719781841639,-500.0,0.00015027,2]
[330784029,1719781841652,-500.0,0.00015027,2]
[330784031,1719781841664,-500.0,0.00015027,2]
[330784033,1719781841676,-500.0,0.00015027,2]
[330784036,1719781841689,-500.0,0.00015027,2]
[330784038,1719781841701,-500.0,0.00015027,2]
[330784041,1719781841713,-500.0,0.00015027,2]
[330784043,1719781841726,-500.0,0.00015027,2]
[330784045,1719781841738,-500.0,0.00015027,2]
[330784047,1719781841750,-504.08202438,0.00015027,2]
[330784050,1719781841762,-500.0,0.00015027,2]
[330784052,1719781841776,-500.0,0.00015027,2]
[330784054,1719781841789,-500.0,0.00015027,2]
[330784057,1719781841801,-500.77469076,0.00015027,2]
[330784059,1719781841813,-500.0,0.00015027,2]
[330784061,1719781841825,-500.0,0.00015027,2]
[330784064,1719781841837,-501.10726315,0.00015027,2]
[330784066,1719781841849,-501.07835622,0.00015027,2]
[330784068,1719781841861,-500.0,0.00015027,2]
[330784071,1719781841873,-497.58966445,0.00015027,2]
[330784073,1719781841885,-500.0,0.00015027,2]
[330784075,1719781841898,-500.0,0.00015027,2]
[330784078,1719781841910,-500.0,0.00015027,2]
[330784080,1719781841922,-500.0,0.00015027,2]
[330784082,1719781841934,-501.64471739,0.00015027,2]
[330784085,1719781841947,-500.0,0.00015027,2]
[330784087,1719781841959,-500.0,0.00015027,2]
[330784089,1719781841971,-500.0,0.00015027,2]
[330784092,1719781841983,-500.0,0.00015027,2]
[330784094,1719781841996,-500.9947283,0.00015027,2]
[330784096,1719781842008,-500.0,0.00015027,2]
[330784099,1719781842020,-500.0,0.00015027,2]
[330784101,1719781842032,-500.0,0.00015027,2]
[330784103,1719781842044,-500.0,0.00015027,2]
[330784106,1719781842057,-500.0,0.00015027,2]
[330784108,1719781842069,-500.0,0.00015027,2]
[330784110,1719781842082,-500.91677921,0.00015027,2]
[330784113,1719781842094,-782.46,0.00015027,2]
[330784115,1719781842103,-500.0,0.00015027,2]
[330784133,1719781842223,-500.0,0.00015027,2]
[330784136,1719781842278,-500.0,0.00015027,2]
[330784138,1719781842287,-500.0,0.00015027,2]
[330784140,1719781842296,-500.0,0.00015027,2]
[330784142,1719781842306,-500.97532239,0.00015027,2]
[330784144,1719781842315,-500.0,0.00015027,2]
[330784146,1719781842324,-513.4056479,0.00015027,2]
[330784148,1719781842334,-500.0,0.00015027,2]
[330784150,1719781842343,-558.89,0.00015027,2]
[330784152,1719781842352,-640.40146563,0.00015027,2]
[330784154,1719781842361,-500.0,0.00015027,2]
[330784156,1719781842371,-500.0,0.00015027,2]
[330784158,1719781842384,-501.05769785,0.00015027,2]
[330784160,1719781842394,-225.44494553,0.00015027,2]
[330784185,1719781842837,-570.99,0.00015025,2]
[330784187,1719781842847,-500.0,0.00015025,2]
[330784189,1719781842856,-203.79540055,0.00015027,2]
[330784353,1719781846489,-10046.18,0.00015024,2]
[330784355,1719781846500,-1537.08,0.00015024,2]
[330784357,1719781846510,-500.0,0.00015025,2]
[330784359,1719781846519,-500.0,0.00015025,2]
[330784360,1719781846529,-70.75965392,0.00015027,2]
[330784361,1719781846538,-500.0,0.00015027,2]
[330784362,1719781846548,-500.0,0.00015027,2]
[330784363,1719781846558,-539.93,0.00015027,2]
[330784364,1719781846568,-942.98,0.00015027,2]
[330784366,1719781846577,-500.0,0.00015027,2]
[330784367,1719781846587,-500.0,0.00015027,2]
[330784368,1719781846597,-500.0,0.00015028,2]
[330784369,1719781846607,-176.34403504,0.00015028,2]
[330784371,1719781846616,-154.83742071,0.00015028,2]
[330784373,1719781846626,-500.0,0.00015028,2]
[330784375,1719781846635,-500.0,0.00015028,2]
[330784377,1719781846645,-13308.01,0.00015028,2]
[330784379,1719781846654,-500.0,0.00015028,2]
[330784381,1719781846663,-500.0,0.00015028,2]
[330784383,1719781846673,-500.0,0.00015028,2]
[330784385,1719781846682,-500.0,0.00015028,2]
[330784387,1719781846692,-500.0,0.00015028,2]
[330784390,1719781846702,-500.0,0.00015028,2]
[330784391,1719781846711,-508.13071172,0.00015028,2]
[330784392,1719781846721,-500.0,0.00015028,2]
[330784393,1719781846730,-1824.2,0.00015028,2]
[330784394,1719781846740,-8040.45,0.00015028,2]
[330784395,1719781846749,-292.863491,0.00015028,2]
[330784396,1719781846760,-1583.87,0.00015028,2]
[330784397,1719781846770,-500.0,0.00015028,2]
[330784398,1719781846780,-500.0,0.00015028,2]
[330784399,1719781846789,-1076.63,0.00015028,2]
[330784400,1719781846798,-1108.9,0.00015028,2]
[330784401,1719781846808,-12481.41,0.00015028,2]
[330784402,1719781846817,-500.0,0.0001503,2]
[330784403,1719781846827,-500.0,0.0001503,2]
[330784404,1719781846836,-5286.34479944,0.00015215,2]
[330784405,1719781846846,-522.5,0.00015571,2]
[330784406,1719781846855,-500.0,0.00015571,2]
[330784407,1719781846865,-560.9,0.00015572,2]
[330784408,1719781846874,-500.0,0.00015572,2]
[330784409,1719781847032,-500.0,0.00015572,2]
[330784410,1719781847042,-3965.97,0.00015572,2]
[330784411,1719781847051,-15713.01,0.00015572,2]
[330784412,1719781847060,-3812.99,0.00015572,2]
[330784413,1719781847070,-500.0,0.00015572,2]
[330784414,1719781847079,-2013.33,0.00015572,2]
[330784415,1719781847088,-660.16,0.00015572,2]
[330784416,1719781847099,-500.0,0.00015572,2]
[330784417,1719781847109,-1654.93,0.00015572,2]
[330784418,1719781847119,-1793.76,0.00015572,2]
[330784419,1719781847129,-1714.12,0.00015572,2]
[330784420,1719781847138,-5771.72,0.00015572,2]
[330784421,1719781847148,-500.0,0.00015572,2]
[330784422,1719781847157,-1430.12,0.00015572,2]
[330784423,1719781847166,-6472.98,0.00015572,2]
[330784424,1719781847174,-518.47,0.00015572,2]
[330784425,1719781847184,-14709.2,0.00015572,2]
[330784426,1719781847193,-696.38,0.00015572,2]
[330784427,1719781847202,-2117.34,0.00015572,2]
[330784428,1719781847211,-2312.74,0.00015572,2]
[330784429,1719781847220,-3800.07,0.00015572,2]
[330784430,1719781847229,-500.0,0.00015572,2]
[330784431,1719781847239,-749.89,0.00015572,2]
[330784432,1719781847249,-500.0,0.00015572,2]
[330784433,1719781847259,-921.07,0.00015572,2]
[330784434,1719781847269,-10046.18,0.00015572,2]
[330784435,1719781847278,-1537.08,0.00015572,2]
[330784436,1719781847287,-1550.2,0.00015573,2]
[330784437,1719781847296,-500.0,0.00015573,2]
[330784438,1719781847306,-500.0,0.00015573,2]
[330784439,1719781847316,-500.0,0.00015573,2]
[330784440,1719781847326,-500.0,0.00015573,2]
[330784441,1719781847335,-500.0,0.00015573,2]
[330784442,1719781847344,-500.0,0.00015573,2]
[330784443,1719781847354,-500.0,0.00015573,2]
[330784444,1719781847363,-1956.01,0.00015573,2]
[330784445,1719781847375,-500.0,0.00015573,2]
[330784446,1719781847387,-500.0,0.00015573,2]
[330784447,1719781847397,-500.0,0.00015573,2]
[330784448,1719781847406,-500.0,0.00015573,2]
[330784449,1719781847418,-500.0,0.00015573,2]
[330784450,1719781847427,-500.0,0.00015573,2]
[330784451,1719781847436,-500.0,0.00015573,2]
[330784452,1719781847447,-1851.29,0.00015573,2]
[330784453,1719781847457,-500.0,0.00015573,2]
[330784454,1719781847468,-2213.69,0.00015573,2]
[330784455,1719781847477,-699.4,0.00015573,2]
[330784456,1719781847487,-584.6,0.00015573,2]
[330784457,1719781847497,-500.0,0.00015573,2]
[330784458,1719781847507,-805.6,0.00015573,2]
[330784459,1719781847516,-500.0,0.00015573,2]
[330784460,1719781847526,-1443.99,0.00015573,2]
[330784461,1719781847536,-500.0,0.00015573,2]
[330784462,1719781847545,-554.73,0.00015573,2]
[330784463,1719781847555,-500.0,0.00015573,2]
[330784464,1719781847564,-500.0,0.00015573,2]
[330784465,1719781847573,-804.77,0.00015573,2]
[330784466,1719781847582,-500.0,0.00015573,2]
[330784467,1719781847591,-500.0,0.00015573,2]
[330784468,1719781847601,-500.0,0.00015573,2]
[330784469,1719781847610,-602.04,0.00015573,2]
[330784470,1719781847619,-500.0,0.00015573,2]
[330784471,1719781847628,-500.0,0.00015573,2]
[330784472,1719781847639,-620.87,0.00015573,2]
[330784473,1719781847648,-500.0,0.00015573,2]
[330784474,1719781847658,-500.0,0.00015573,2]
[330784475,1719781847667,-810.67,0.00015573,2]
[330784476,1719781847676,-500.0,0.00015573,2]
[330784477,1719781847685,-681.84,0.00015573,2]
[330784478,1719781847695,-500.0,0.00015573,2]
[330784479,1719781847704,-500.0,0.00015573,2]
[330784480,1719781847713,-500.0,0.00015573,2]
[330784481,1719781847723,-576.74,0.00015573,2]
[330784482,1719781847731,-500.0,0.00015573,2]
[330784483,1719781847741,-500.0,0.00015573,2]
[330784484,1719781847751,-500.0,0.00015573,2]
[330784485,1719781847760,-500.0,0.00015573,2]
[330784486,1719781847770,-501.28598276,0.00015573,2]
[330784487,1719781847782,-500.0,0.00015573,2]
[330784488,1719781847791,-500.0,0.00015573,2]
[330784489,1719781847800,-500.0,0.00015573,2]
[330784490,1719781847815,-505.91,0.00015573,2]
[330784491,1719781847824,-500.0,0.00015573,2]
[330784492,1719781847833,-522.59023114,0.00015573,2]
[330784493,1719781847843,-500.0,0.00015573,2]
[330784494,1719781847852,-736.61,0.00015573,2]
[330784495,1719781847861,-500.0,0.00015573,2]
[330784496,1719781847870,-1343.33,0.00015573,2]
[330784497,1719781847879,-500.0,0.00015573,2]
[330784498,1719781847888,-3323.36,0.00015573,2]